[Event "Titled Tuesday Blitz January 25 2022"]
[White "Zakhartsov, Vladimir"]
[Black "Tsyhanchuk, Stanislav"]
[WhiteFideId "4145097"]
[BlackFideId "13505130"]
[WhiteElo "2432"]
[BlackElo "2078"]
[Result "1-0"]
[Round "02"]
[TimeControl "180+1"]
[Date "2022.01.26"]
[WhiteClock "0:00:17"]
[BlackClock "0:00:18"]

1. d4 {[%clk 0:03:00]}  d5 {[%clk 0:02:59]} 2. c4 {[%clk 0:02:59]}  c6 {[%clk 0:02:59]} 3. Nf3 {[%clk 0:03:00]}  Nf6 {[%clk 0:02:56]} 4. Nc3 {[%clk 0:03:00]}  dxc4 {[%clk 0:02:56]} 5. a4 {[%clk 0:03:00]}  Bf5 {[%clk 0:02:53]} 6. Ne5 {[%clk 0:02:57]}  Nbd7 {[%clk 0:02:52]} 7. Nxc4 {[%clk 0:02:57]}  Qc7 {[%clk 0:02:49]} 8. g3 {[%clk 0:02:57]}  e5 {[%clk 0:02:48]} 9. dxe5 {[%clk 0:02:56]}  Nxe5 {[%clk 0:02:48]} 10. Bf4 {[%clk 0:02:56]}  Nfd7 {[%clk 0:02:38]} 11. Qc1 {[%clk 0:02:55]}  g5 {[%clk 0:02:11]} 12. Bxe5 {[%clk 0:02:36]}  Nxe5 {[%clk 0:02:08]} 13. Qe3 {[%clk 0:02:31]}  Bg7 {[%clk 0:01:25]} 14. f4 {[%clk 0:02:26]}  gxf4 {[%clk 0:01:12]} 15. gxf4 {[%clk 0:02:27]}  O-O-O {[%clk 0:01:10]} 16. fxe5 {[%clk 0:02:23]}  Be6 {[%clk 0:01:09]} 17. Bh3 {[%clk 0:02:12]}  Bxh3 {[%clk 0:00:56]} 18. Qxh3+ {[%clk 0:02:12]}  Kb8 {[%clk 0:00:56]} 19. Rg1 {[%clk 0:01:44]}  Bf8 {[%clk 0:00:53]} 20. Rd1 {[%clk 0:01:36]}  Bb4 {[%clk 0:00:50]} 21. Rd3 {[%clk 0:01:27]}  Rxd3 {[%clk 0:00:39]} 22. Qxd3 {[%clk 0:01:24]}  Rd8 {[%clk 0:00:37]} 23. Qxh7 {[%clk 0:01:20]}  b5 {[%clk 0:00:37]} 24. Ne3 {[%clk 0:00:39]}  Qd7 {[%clk 0:00:32]} 25. Kf2 {[%clk 0:00:34]}  Qc7 {[%clk 0:00:21]} 26. Qe4 {[%clk 0:00:31]}  Re8 {[%clk 0:00:20]} 27. Qxb4 {[%clk 0:00:31]}  Qxe5 {[%clk 0:00:18]} 28. Nf1 {[%clk 0:00:20]}  Qf5+ {[%clk 0:00:18]} 29. Ke1 {[%clk 0:00:19]}  a5 {[%clk 0:00:17]} 30. Qd4 {[%clk 0:00:16]}  b4 {[%clk 0:00:16]} 31. Qb6+ {[%clk 0:00:16]}  Kc8 {[%clk 0:00:14]} 32. Qxc6+ {[%clk 0:00:16]}  Kd8 {[%clk 0:00:15]} 33. Qd5+ {[%clk 0:00:16]}  Qxd5 {[%clk 0:00:14]} 34. Nxd5 {[%clk 0:00:17]}  Re5 {[%clk 0:00:14]} 35. Nfe3 {[%clk 0:00:16]}  Rh5 {[%clk 0:00:14]} 36. Rg2 {[%clk 0:00:16]}  Re5 {[%clk 0:00:13]} 37. Rf2 {[%clk 0:00:16]}  Ke8 {[%clk 0:00:13]} 38. Rf5 {[%clk 0:00:15]}  Re4 {[%clk 0:00:12]} 39. Nf6+ {[%clk 0:00:15]}  Ke7 {[%clk 0:00:11]} 40. Nxe4 {[%clk 0:00:16]}  Ke6 {[%clk 0:00:12]} 41. Rxa5 {[%clk 0:00:15]}  Ke7 {[%clk 0:00:12]} 42. Rf5 {[%clk 0:00:16]}  Kf8 {[%clk 0:00:13]} 43. a5 {[%clk 0:00:16]}  Kg7 {[%clk 0:00:14]} 44. a6 {[%clk 0:00:17]}  Kh7 {[%clk 0:00:15]} 45. a7 {[%clk 0:00:18]}  Kh6 {[%clk 0:00:16]} 46. a8=Q {[%clk 0:00:17]}  Kg6 {[%clk 0:00:16]} 47. Qg8+ {[%clk 0:00:16]}  Kh6 {[%clk 0:00:17]} 48. Qg5+ {[%clk 0:00:16]}  Kh7 {[%clk 0:00:17]} 49. Rxf7+ {[%clk 0:00:16]}  Kh8 {[%clk 0:00:18]} 50. Qg7# {[%clk 0:00:17]} 1-0


[Site "https://www.chess.com"]

[Event "Titled Tuesday Blitz January 25 2022"]
[White "Zarubitski, Viachaslau"]
[Black "Sjoberg, Isak"]
[WhiteFideId "13509373"]
[BlackFideId "1521640"]
[WhiteElo "2325"]
[BlackElo "2016"]
[Result "1-0"]
[Round "02"]
[TimeControl "180+1"]
[Date "2022.01.26"]
[WhiteClock "0:01:42"]
[BlackClock "0:00:44"]

1. d4 {[%clk 0:03:00]}  Nf6 {[%clk 0:02:57]} 2. c4 {[%clk 0:03:01]}  e6 {[%clk 0:02:56]} 3. Nf3 {[%clk 0:03:01]}  c5 {[%clk 0:02:55]} 4. d5 {[%clk 0:03:01]}  exd5 {[%clk 0:02:56]} 5. cxd5 {[%clk 0:03:02]}  d6 {[%clk 0:02:56]} 6. Nc3 {[%clk 0:03:03]}  g6 {[%clk 0:02:57]} 7. h3 {[%clk 0:03:03]}  Bg7 {[%clk 0:02:58]} 8. Bf4 {[%clk 0:03:04]}  O-O {[%clk 0:02:57]} 9. e3 {[%clk 0:03:04]}  Na6 {[%clk 0:02:56]} 10. Be2 {[%clk 0:03:03]}  Nc7 {[%clk 0:02:56]} 11. O-O {[%clk 0:03:03]}  Qe7 {[%clk 0:02:42]} 12. Bh2 {[%clk 0:02:53]}  Rb8 {[%clk 0:02:41]} 13. a4 {[%clk 0:02:52]}  b6 {[%clk 0:02:40]} 14. Nd2 {[%clk 0:02:50]}  Nfe8 {[%clk 0:02:35]} 15. Nc4 {[%clk 0:02:49]}  Ba6 {[%clk 0:02:35]} 16. Qc2 {[%clk 0:02:43]}  Bxc4 {[%clk 0:02:34]} 17. Bxc4 {[%clk 0:02:42]}  a6 {[%clk 0:02:35]} 18. Be2 {[%clk 0:02:42]}  f5 {[%clk 0:02:31]} 19. Rab1 {[%clk 0:02:40]}  b5 {[%clk 0:02:31]} 20. b4 {[%clk 0:02:38]}  c4 {[%clk 0:02:26]} 21. Bf3 {[%clk 0:02:32]}  Nf6 {[%clk 0:02:21]} 22. Rfe1 {[%clk 0:02:30]}  bxa4 {[%clk 0:02:13]} 23. Nxa4 {[%clk 0:02:29]}  Qd7 {[%clk 0:02:01]} 24. Qxc4 {[%clk 0:02:23]}  Rfc8 {[%clk 0:02:00]} 25. Qa2 {[%clk 0:02:20]}  Kh8 {[%clk 0:01:53]} 26. Rec1 {[%clk 0:02:14]}  Ncxd5 {[%clk 0:01:42]} 27. Bxd5 {[%clk 0:02:14]}  Nxd5 {[%clk 0:01:42]} 28. Qxd5 {[%clk 0:02:14]}  Qxa4 {[%clk 0:01:41]} 29. Bxd6 {[%clk 0:02:14]}  Rd8 {[%clk 0:01:31]} 30. Qc5 {[%clk 0:02:04]}  Ra8 {[%clk 0:01:26]} 31. Be5 {[%clk 0:02:04]}  Qd7 {[%clk 0:01:19]} 32. Bxg7+ {[%clk 0:02:01]}  Qxg7 {[%clk 0:01:19]} 33. Qc6 {[%clk 0:02:00]}  Rdb8 {[%clk 0:01:17]} 34. Ra1 {[%clk 0:01:58]}  Qb2 {[%clk 0:00:58]} 35. Rab1 {[%clk 0:01:50]}  Qe5 {[%clk 0:00:52]} 36. Rc5 {[%clk 0:01:49]}  Rc8 {[%clk 0:00:45]} 37. Qxa8 {[%clk 0:01:42]}  Qxc5 {[%clk 0:00:43]} 38. Qxa6 {[%clk 0:01:42]}  Ra8 {[%clk 0:00:44]} 39. Qxa8+ {[%clk 0:01:42]} 1-0


[Site "https://www.chess.com"]

[Event "Titled Tuesday Blitz January 25 2022"]
[White "Albornoz Cabrera, Carlos Daniel"]
[Black "Cherniaiev, Tykhon"]
[WhiteFideId "3518736"]
[BlackFideId "14182360"]
[WhiteElo "2490"]
[BlackElo "2289"]
[Result "0-1"]
[Round "03"]
[TimeControl "180+1"]
[Date "2022.01.26"]
[WhiteClock "0:00:01"]
[BlackClock "0:00:18"]

1. e4 {[%clk 0:03:00]}  c5 {[%clk 0:02:57]} 2. Nf3 {[%clk 0:03:00]}  e6 {[%clk 0:02:57]} 3. g3 {[%clk 0:02:59]}  a6 {[%clk 0:02:56]} 4. Bg2 {[%clk 0:02:59]}  Nc6 {[%clk 0:02:56]} 5. O-O {[%clk 0:02:59]}  b5 {[%clk 0:02:54]} 6. d4 {[%clk 0:02:54]}  cxd4 {[%clk 0:02:55]} 7. Nxd4 {[%clk 0:02:55]}  Bb7 {[%clk 0:02:55]} 8. Re1 {[%clk 0:02:54]}  Bc5 {[%clk 0:02:52]} 9. Be3 {[%clk 0:02:52]}  Qe7 {[%clk 0:02:22]} 10. Nc3 {[%clk 0:02:47]}  Nf6 {[%clk 0:02:06]} 11. e5 {[%clk 0:02:42]}  Ng8 {[%clk 0:02:02]} 12. Nd5 {[%clk 0:01:47]}  exd5 {[%clk 0:01:58]} 13. Nf5 {[%clk 0:01:47]}  Qf8 {[%clk 0:01:30]} 14. Bxc5 {[%clk 0:01:40]}  Qxc5 {[%clk 0:01:31]} 15. Nd6+ {[%clk 0:01:40]}  Kf8 {[%clk 0:01:13]} 16. Nxb7 {[%clk 0:01:41]}  Qb6 {[%clk 0:00:55]} 17. Nd6 {[%clk 0:01:38]}  Qd4 {[%clk 0:00:38]} 18. Qh5 {[%clk 0:01:19]}  g6 {[%clk 0:00:35]} 19. Qe2 {[%clk 0:01:14]}  Nge7 {[%clk 0:00:31]} 20. Rad1 {[%clk 0:01:12]}  Qc5 {[%clk 0:00:28]} 21. c3 {[%clk 0:00:41]}  Kg7 {[%clk 0:00:23]} 22. h4 {[%clk 0:00:21]}  Rhf8 {[%clk 0:00:22]} 23. h5 {[%clk 0:00:21]}  h6 {[%clk 0:00:21]} 24. hxg6 {[%clk 0:00:18]}  fxg6 {[%clk 0:00:21]} 25. Qg4 {[%clk 0:00:18]}  Nxe5 {[%clk 0:00:20]} 26. Rxe5 {[%clk 0:00:18]}  Qxd6 {[%clk 0:00:20]} 27. Rde1 {[%clk 0:00:17]}  Nc6 {[%clk 0:00:19]} 28. Rxd5 {[%clk 0:00:16]}  Qf6 {[%clk 0:00:19]} 29. Rxd7+ {[%clk 0:00:16]}  Kh8 {[%clk 0:00:18]} 30. f4 {[%clk 0:00:09]}  Rae8 {[%clk 0:00:17]} 31. Rdd1 {[%clk 0:00:05]}  Ne7 {[%clk 0:00:16]} 32. Re6 {[%clk 0:00:05]}  Qf7 {[%clk 0:00:16]} 33. Rde1 {[%clk 0:00:05]}  Nf5 {[%clk 0:00:17]} 34. Rxe8 {[%clk 0:00:04]}  Rxe8 {[%clk 0:00:17]} 35. Rxe8+ {[%clk 0:00:03]}  Qxe8 {[%clk 0:00:18]} 36. Qf3 {[%clk 0:00:03]}  Qe1+ {[%clk 0:00:18]} 37. Kh2 {[%clk 0:00:03]}  h5 {[%clk 0:00:18]} 38. Qa8+ {[%clk 0:00:03]}  Kg7 {[%clk 0:00:19]} 39. Qb7+ {[%clk 0:00:03]}  Kh6 {[%clk 0:00:19]} 40. Qf3 {[%clk 0:00:04]}  Ne3 {[%clk 0:00:17]} 41. Qe4 {[%clk 0:00:02]}  Ng4+ {[%clk 0:00:17]} 42. Kh3 {[%clk 0:00:01]}  Nf2+ {[%clk 0:00:17]} 43. Kh4 {[%clk 0:00:01]}  Nxe4 {[%clk 0:00:18]} 0-1


[Site "https://www.chess.com"]

[Event "Titled Tuesday Blitz January 25 2022"]
[White "Azadaliyev, Jahandar"]
[Black "Zakhartsov, Vladimir"]
[WhiteFideId "13425811"]
[BlackFideId "4145097"]
[WhiteElo "1795"]
[BlackElo "2432"]
[Result "1-0"]
[Round "03"]
[TimeControl "180+1"]
[Date "2022.01.26"]
[WhiteClock "0:02:03"]
[BlackClock "0:02:38"]

1. d4 {[%clk 0:03:00]}  Nf6 {[%clk 0:02:59]} 2. c4 {[%clk 0:03:01]}  e6 {[%clk 0:03:00]} 3. Nf3 {[%clk 0:03:01]}  c5 {[%clk 0:03:00]} 4. d5 {[%clk 0:03:01]}  exd5 {[%clk 0:03:01]} 5. cxd5 {[%clk 0:03:00]}  b5 {[%clk 0:03:01]} 6. Bg5 {[%clk 0:03:00]}  d6 {[%clk 0:03:00]} 7. e4 {[%clk 0:02:53]}  a6 {[%clk 0:03:00]} 8. Be2 {[%clk 0:02:50]}  Be7 {[%clk 0:02:59]} 9. Nbd2 {[%clk 0:02:49]}  Nxd5 {[%clk 0:02:54]} 10. exd5 {[%clk 0:02:29]}  Bxg5 {[%clk 0:02:53]} 11. O-O {[%clk 0:02:27]}  O-O {[%clk 0:02:50]} 12. Nxg5 {[%clk 0:02:22]}  Qxg5 {[%clk 0:02:49]} 13. Ne4 {[%clk 0:02:22]}  Qe7 {[%clk 0:02:48]} 14. Bd3 {[%clk 0:02:21]}  Nd7 {[%clk 0:02:42]} 15. Qh5 {[%clk 0:02:11]}  Ne5 {[%clk 0:02:38]} 16. Nf6+ {[%clk 0:02:03]} 1-0


[Site "https://www.chess.com"]

[Event "Titled Tuesday Blitz January 25 2022"]
[White "Bacrot, Etienne"]
[Black "Atanasov, Anthony"]
[WhiteFideId "605506"]
[BlackFideId "2623897"]
[WhiteElo "2673"]
[BlackElo "1928"]
[Result "1-0"]
[Round "03"]
[TimeControl "180+1"]
[Date "2022.01.26"]
[WhiteClock "0:00:59"]
[BlackClock "0:00:01"]

1. d4 {[%clk 0:03:00]}  e5 {[%clk 0:02:57]} 2. dxe5 {[%clk 0:03:00]}  Nc6 {[%clk 0:02:56]} 3. Nf3 {[%clk 0:03:00]}  Qe7 {[%clk 0:02:56]} 4. Nc3 {[%clk 0:02:42]}  Nxe5 {[%clk 0:02:56]} 5. e4 {[%clk 0:02:41]}  Nf6 {[%clk 0:02:54]} 6. Bg5 {[%clk 0:02:38]}  c6 {[%clk 0:02:49]} 7. Qd2 {[%clk 0:02:23]}  h6 {[%clk 0:02:23]} 8. Bh4 {[%clk 0:02:14]}  d5 {[%clk 0:02:11]} 9. O-O-O {[%clk 0:02:08]}  Bg4 {[%clk 0:01:52]} 10. Be2 {[%clk 0:01:48]}  Bxf3 {[%clk 0:01:01]} 11. gxf3 {[%clk 0:01:47]}  g5 {[%clk 0:00:54]} 12. Bg3 {[%clk 0:01:45]}  dxe4 {[%clk 0:00:38]} 13. Qd4 {[%clk 0:01:16]}  Ned7 {[%clk 0:00:10]} 14. Nxe4 {[%clk 0:01:02]}  Bg7 {[%clk 0:00:02]} 15. Bd6 {[%clk 0:01:00]}  Qe6 {[%clk 0:00:01]} 16. Bc4 {[%clk 0:00:59]} 1-0


[Site "https://www.chess.com"]

[Event "Titled Tuesday Blitz January 25 2022"]
[White "Badmatsyrenov, Oleg"]
[Black "Deac, Bogdan-Daniel"]
[WhiteFideId "24115762"]
[BlackFideId "1226380"]
[WhiteElo "2403"]
[BlackElo "2646"]
[Result "0-1"]
[Round "03"]
[TimeControl "180+1"]
[Date "2022.01.26"]
[WhiteClock "0:00:01"]
[BlackClock "0:00:04"]

1. e4 {[%clk 0:02:56]}  c5 {[%clk 0:02:59]} 2. Nf3 {[%clk 0:02:56]}  Nc6 {[%clk 0:02:59]} 3. d4 {[%clk 0:02:56]}  cxd4 {[%clk 0:02:59]} 4. Nxd4 {[%clk 0:02:57]}  Nf6 {[%clk 0:02:59]} 5. Nc3 {[%clk 0:02:58]}  e5 {[%clk 0:03:00]} 6. Ndb5 {[%clk 0:02:59]}  d6 {[%clk 0:03:00]} 7. Bg5 {[%clk 0:02:59]}  a6 {[%clk 0:03:00]} 8. Na3 {[%clk 0:03:00]}  b5 {[%clk 0:03:01]} 9. Nd5 {[%clk 0:03:00]}  Be7 {[%clk 0:03:00]} 10. Bxf6 {[%clk 0:03:01]}  Bxf6 {[%clk 0:03:01]} 11. c4 {[%clk 0:03:01]}  b4 {[%clk 0:03:00]} 12. Nc2 {[%clk 0:03:02]}  Rb8 {[%clk 0:02:51]} 13. b3 {[%clk 0:03:01]}  g6 {[%clk 0:02:51]} 14. g3 {[%clk 0:03:00]}  Bg7 {[%clk 0:02:45]} 15. Bg2 {[%clk 0:03:00]}  O-O {[%clk 0:02:43]} 16. O-O {[%clk 0:03:00]}  a5 {[%clk 0:02:42]} 17. Qd3 {[%clk 0:02:59]}  Be6 {[%clk 0:02:41]} 18. Rad1 {[%clk 0:02:59]}  a4 {[%clk 0:02:17]} 19. h4 {[%clk 0:02:39]}  h5 {[%clk 0:02:01]} 20. Kh2 {[%clk 0:02:38]}  Qa5 {[%clk 0:01:59]} 21. Bh3 {[%clk 0:02:33]}  Qc5 {[%clk 0:01:39]} 22. Kg2 {[%clk 0:01:59]}  Rb7 {[%clk 0:01:06]} 23. Qe3 {[%clk 0:01:15]}  Ra8 {[%clk 0:00:55]} 24. Qg5 {[%clk 0:01:12]}  Kh7 {[%clk 0:00:24]} 25. Nf6+ {[%clk 0:00:56]}  Bxf6 {[%clk 0:00:23]} 26. Qxf6 {[%clk 0:00:56]}  Re8 {[%clk 0:00:20]} 27. Bf5 {[%clk 0:00:23]}  Kg8 {[%clk 0:00:10]} 28. Rd3 {[%clk 0:00:12]}  axb3 {[%clk 0:00:07]} 29. axb3 {[%clk 0:00:12]}  gxf5 {[%clk 0:00:07]} 30. exf5 {[%clk 0:00:12]}  e4 {[%clk 0:00:08]} 31. Rd5 {[%clk 0:00:06]}  Bxd5 {[%clk 0:00:07]} 32. Qg5+ {[%clk 0:00:06]}  Kf8 {[%clk 0:00:07]} 33. cxd5 {[%clk 0:00:05]}  Qxd5 {[%clk 0:00:05]} 34. Ne3 {[%clk 0:00:05]}  Qe5 {[%clk 0:00:05]} 35. Qh6+ {[%clk 0:00:01]}  Qg7 {[%clk 0:00:05]} 36. Qf4 {[%clk 0:00:01]}  Ne5 {[%clk 0:00:05]} 37. Nd5 {[%clk 0:00:02]}  Rd7 {[%clk 0:00:04]} 38. f6 {[%clk 0:00:01]}  Qg6 {[%clk 0:00:04]} 0-1


[Site "https://www.chess.com"]

[Event "Titled Tuesday Blitz January 25 2022"]
[White "Bluebaum, Matthias"]
[Black "Ovetchkin, Roman"]
[WhiteFideId "24651516"]
[BlackFideId "4119991"]
[WhiteElo "2550"]
[BlackElo "2409"]
[Result "0-1"]
[Round "03"]
[TimeControl "180+1"]
[Date "2022.01.26"]
[WhiteClock "0:00:06"]
[BlackClock "0:00:11"]

1. d4 {[%clk 0:03:00]}  Nf6 {[%clk 0:02:59]} 2. Nf3 {[%clk 0:03:00]}  g6 {[%clk 0:02:59]} 3. Nc3 {[%clk 0:03:00]}  Bg7 {[%clk 0:02:54]} 4. e4 {[%clk 0:03:00]}  d5 {[%clk 0:02:54]} 5. e5 {[%clk 0:02:59]}  Ne4 {[%clk 0:02:54]} 6. Bd3 {[%clk 0:02:58]}  Nxc3 {[%clk 0:02:53]} 7. bxc3 {[%clk 0:02:59]}  c5 {[%clk 0:02:54]} 8. h4 {[%clk 0:02:51]}  c4 {[%clk 0:02:47]} 9. Be2 {[%clk 0:02:50]}  Qa5 {[%clk 0:02:47]} 10. Bd2 {[%clk 0:02:50]}  h6 {[%clk 0:02:24]} 11. Nh2 {[%clk 0:02:21]}  Nc6 {[%clk 0:02:18]} 12. Nf1 {[%clk 0:02:11]}  h5 {[%clk 0:02:14]} 13. Ne3 {[%clk 0:02:07]}  Bh6 {[%clk 0:01:59]} 14. Nf1 {[%clk 0:01:33]}  Bxd2+ {[%clk 0:01:56]} 15. Qxd2 {[%clk 0:01:34]}  Bf5 {[%clk 0:01:56]} 16. Ne3 {[%clk 0:01:35]}  e6 {[%clk 0:01:54]} 17. f3 {[%clk 0:01:33]}  O-O-O {[%clk 0:01:50]} 18. Kf2 {[%clk 0:01:33]}  Qa3 {[%clk 0:01:49]} 19. Rhb1 {[%clk 0:01:32]}  Rd7 {[%clk 0:01:41]} 20. Nd1 {[%clk 0:01:24]}  Rc7 {[%clk 0:01:38]} 21. Qc1 {[%clk 0:01:24]}  Qxc1 {[%clk 0:01:35]} 22. Rxc1 {[%clk 0:01:25]}  b6 {[%clk 0:01:30]} 23. Ne3 {[%clk 0:01:23]}  Kb7 {[%clk 0:01:30]} 24. Rh1 {[%clk 0:01:17]}  Ka6 {[%clk 0:01:29]} 25. Nxf5 {[%clk 0:01:00]}  exf5 {[%clk 0:01:16]} 26. g4 {[%clk 0:00:59]}  f4 {[%clk 0:01:10]} 27. Rag1 {[%clk 0:00:45]}  Nd8 {[%clk 0:01:07]} 28. Bf1 {[%clk 0:00:42]}  Ne6 {[%clk 0:01:03]} 29. Bh3 {[%clk 0:00:30]}  Ng7 {[%clk 0:00:50]} 30. gxh5 {[%clk 0:00:22]}  Nxh5 {[%clk 0:00:49]} 31. Rg5 {[%clk 0:00:21]}  Ng3 {[%clk 0:00:45]} 32. Rh2 {[%clk 0:00:21]}  Rxh4 {[%clk 0:00:44]} 33. Bc8+ {[%clk 0:00:21]}  Rxc8 {[%clk 0:00:43]} 34. Rxh4 {[%clk 0:00:21]}  Nf5 {[%clk 0:00:28]} 35. Rh7 {[%clk 0:00:18]}  Rf8 {[%clk 0:00:25]} 36. e6 {[%clk 0:00:14]}  fxe6 {[%clk 0:00:25]} 37. Rxg6 {[%clk 0:00:15]}  Re8 {[%clk 0:00:24]} 38. Rf6 {[%clk 0:00:15]}  Ne3 {[%clk 0:00:23]} 39. Rff7 {[%clk 0:00:15]}  Nd1+ {[%clk 0:00:23]} 40. Ke1 {[%clk 0:00:14]}  Nxc3 {[%clk 0:00:24]} 41. Kd2 {[%clk 0:00:14]}  Na4 {[%clk 0:00:22]} 42. Rxa7+ {[%clk 0:00:13]}  Kb5 {[%clk 0:00:23]} 43. Rh1 {[%clk 0:00:11]}  c3+ {[%clk 0:00:21]} 44. Kd3 {[%clk 0:00:11]}  Kb4 {[%clk 0:00:22]} 45. Rb1+ {[%clk 0:00:11]}  Nb2+ {[%clk 0:00:22]} 46. Ke2 {[%clk 0:00:11]}  e5 {[%clk 0:00:22]} 47. dxe5 {[%clk 0:00:09]}  Rxe5+ {[%clk 0:00:22]} 48. Kf2 {[%clk 0:00:09]}  d4 {[%clk 0:00:21]} 49. a3+ {[%clk 0:00:10]}  Kc4 {[%clk 0:00:21]} 50. Rc7+ {[%clk 0:00:10]}  Rc5 {[%clk 0:00:21]} 51. Rf7 {[%clk 0:00:06]}  Rh5 {[%clk 0:00:20]} 52. Kg2 {[%clk 0:00:05]}  Rg5+ {[%clk 0:00:19]} 53. Kf2 {[%clk 0:00:06]}  Rh5 {[%clk 0:00:19]} 54. Kg2 {[%clk 0:00:07]}  Rh4 {[%clk 0:00:18]} 55. Rc7+ {[%clk 0:00:06]}  Kd5 {[%clk 0:00:17]} 56. Rd7+ {[%clk 0:00:06]}  Kc5 {[%clk 0:00:18]} 57. Rc7+ {[%clk 0:00:06]}  Kd6 {[%clk 0:00:18]} 58. Rc8 {[%clk 0:00:07]}  Rh5 {[%clk 0:00:17]} 59. Rd8+ {[%clk 0:00:08]}  Kc5 {[%clk 0:00:17]} 60. Re1 {[%clk 0:00:08]}  Rd5 {[%clk 0:00:15]} 61. Rc8+ {[%clk 0:00:09]}  Kb5 {[%clk 0:00:15]} 62. Re4 {[%clk 0:00:08]}  Nc4 {[%clk 0:00:15]} 63. a4+ {[%clk 0:00:08]}  Kb4 {[%clk 0:00:15]} 64. Rxf4 {[%clk 0:00:09]}  Ne3+ {[%clk 0:00:15]} 65. Kf2 {[%clk 0:00:06]}  Nxc2 {[%clk 0:00:16]} 66. Rc6 {[%clk 0:00:05]}  Kxa4 {[%clk 0:00:14]} 67. Rxb6 {[%clk 0:00:06]}  Nb4 {[%clk 0:00:14]} 68. Rb8 {[%clk 0:00:05]}  Kb3 {[%clk 0:00:13]} 69. Re4 {[%clk 0:00:04]}  c2 {[%clk 0:00:13]} 70. Rc8 {[%clk 0:00:05]}  d3 {[%clk 0:00:13]} 71. Re3 {[%clk 0:00:04]}  Kb2 {[%clk 0:00:13]} 72. Rc4 {[%clk 0:00:04]}  Na2 {[%clk 0:00:11]} 73. Re1 {[%clk 0:00:02]}  d2 {[%clk 0:00:10]} 74. Re2 {[%clk 0:00:03]}  c1=Q {[%clk 0:00:10]} 75. Rxc1 {[%clk 0:00:03]}  Nxc1 {[%clk 0:00:10]} 76. Re3 {[%clk 0:00:03]}  d1=Q {[%clk 0:00:10]} 77. Kg3 {[%clk 0:00:03]}  Rd3 {[%clk 0:00:10]} 78. Kf4 {[%clk 0:00:04]}  Rxe3 {[%clk 0:00:10]} 79. Kxe3 {[%clk 0:00:05]}  Qe2+ {[%clk 0:00:11]} 80. Kf4 {[%clk 0:00:06]}  Nd3+ {[%clk 0:00:11]} 81. Kg3 {[%clk 0:00:06]} 0-1


[Site "https://www.chess.com"]

[Event "Titled Tuesday Blitz January 25 2022"]
[White "Bodnaruk, Anastasia"]
[Black "Izoria, Zviad"]
[WhiteFideId "4181751"]
[BlackFideId "13601733"]
[WhiteElo "2393"]
[BlackElo "2626"]
[Result "1-0"]
[Round "03"]
[TimeControl "180+1"]
[Date "2022.01.26"]
[WhiteClock "0:00:07"]
[BlackClock "0:00:11"]

1. e4 {[%clk 0:03:00]}  c5 {[%clk 0:02:59]} 2. Nc3 {[%clk 0:03:00]}  Nc6 {[%clk 0:02:55]} 3. Bb5 {[%clk 0:02:58]}  Nd4 {[%clk 0:02:55]} 4. Bc4 {[%clk 0:02:58]}  e6 {[%clk 0:02:52]} 5. Nge2 {[%clk 0:02:57]}  Nf6 {[%clk 0:02:50]} 6. O-O {[%clk 0:02:53]}  a6 {[%clk 0:02:50]} 7. a4 {[%clk 0:02:53]}  d5 {[%clk 0:02:47]} 8. exd5 {[%clk 0:02:52]}  exd5 {[%clk 0:02:48]} 9. Ba2 {[%clk 0:02:52]}  Bg4 {[%clk 0:02:44]} 10. f3 {[%clk 0:02:44]}  Be6 {[%clk 0:02:37]} 11. Nxd4 {[%clk 0:02:36]}  cxd4 {[%clk 0:02:37]} 12. Ne2 {[%clk 0:02:37]}  d3 {[%clk 0:02:35]} 13. cxd3 {[%clk 0:02:36]}  Bd6 {[%clk 0:02:32]} 14. d4 {[%clk 0:02:27]}  Qc7 {[%clk 0:02:30]} 15. f4 {[%clk 0:02:05]}  O-O {[%clk 0:02:28]} 16. d3 {[%clk 0:02:04]}  Bf5 {[%clk 0:02:07]} 17. h3 {[%clk 0:01:55]}  Rfe8 {[%clk 0:02:02]} 18. Bd2 {[%clk 0:01:43]}  Bxd3 {[%clk 0:01:59]} 19. Ba5 {[%clk 0:01:32]}  Qxa5 {[%clk 0:01:39]} 20. Qxd3 {[%clk 0:01:32]}  Qb4 {[%clk 0:01:40]} 21. Nc3 {[%clk 0:01:19]}  Rad8 {[%clk 0:01:25]} 22. Nxd5 {[%clk 0:00:54]}  Nxd5 {[%clk 0:01:24]} 23. Bxd5 {[%clk 0:00:55]}  Bc5 {[%clk 0:01:23]} 24. Bxf7+ {[%clk 0:00:49]}  Kxf7 {[%clk 0:01:00]} 25. Qf5+ {[%clk 0:00:48]}  Kg8 {[%clk 0:01:00]} 26. dxc5 {[%clk 0:00:46]}  Qxb2 {[%clk 0:00:57]} 27. Rae1 {[%clk 0:00:42]}  Qd4+ {[%clk 0:00:53]} 28. Kh2 {[%clk 0:00:40]}  g6 {[%clk 0:00:33]} 29. Rxe8+ {[%clk 0:00:26]}  Rxe8 {[%clk 0:00:34]} 30. Qb1 {[%clk 0:00:26]}  Re7 {[%clk 0:00:28]} 31. Qc2 {[%clk 0:00:24]}  Rf7 {[%clk 0:00:25]} 32. c6 {[%clk 0:00:15]}  bxc6 {[%clk 0:00:20]} 33. Qxc6 {[%clk 0:00:15]}  Qf6 {[%clk 0:00:13]} 34. Qxf6 {[%clk 0:00:12]}  Rxf6 {[%clk 0:00:14]} 35. Kg3 {[%clk 0:00:12]}  Rc6 {[%clk 0:00:13]} 36. f5 {[%clk 0:00:09]}  Rc4 {[%clk 0:00:11]} 37. Rf4 {[%clk 0:00:09]}  Rc3+ {[%clk 0:00:11]} 38. Kg4 {[%clk 0:00:09]}  Kg7 {[%clk 0:00:09]} 39. fxg6 {[%clk 0:00:08]}  hxg6 {[%clk 0:00:10]} 40. Rd4 {[%clk 0:00:08]}  Ra3 {[%clk 0:00:10]} 41. g3 {[%clk 0:00:08]}  Kh6 {[%clk 0:00:10]} 42. h4 {[%clk 0:00:08]}  a5 {[%clk 0:00:10]} 43. Rc4 {[%clk 0:00:08]}  Rb3 {[%clk 0:00:10]} 44. Kf4 {[%clk 0:00:08]}  Rb4 {[%clk 0:00:11]} 45. Rxb4 {[%clk 0:00:06]}  axb4 {[%clk 0:00:12]} 46. Ke4 {[%clk 0:00:07]}  g5 {[%clk 0:00:11]} 47. hxg5+ {[%clk 0:00:06]}  Kxg5 {[%clk 0:00:11]} 48. a5 {[%clk 0:00:07]} 1-0


[Site "https://www.chess.com"]

[Event "Titled Tuesday Blitz January 25 2022"]
[White "Boros, Denes"]
[Black "Perske, Thore"]
[WhiteFideId "722340"]
[BlackFideId "12902195"]
[WhiteElo "2464"]
[BlackElo "2315"]
[Result "0-1"]
[Round "03"]
[TimeControl "180+1"]
[Date "2022.01.26"]
[WhiteClock "0:00:38"]
[BlackClock "0:00:37"]

1. d4 {[%clk 0:03:00]}  Nf6 {[%clk 0:02:56]} 2. Nc3 {[%clk 0:03:01]}  e6 {[%clk 0:02:55]} 3. Bf4 {[%clk 0:03:01]}  d5 {[%clk 0:02:52]} 4. e3 {[%clk 0:03:01]}  Bd6 {[%clk 0:02:48]} 5. Bg5 {[%clk 0:03:00]}  h6 {[%clk 0:02:45]} 6. Bh4 {[%clk 0:03:00]}  a6 {[%clk 0:02:43]} 7. Nf3 {[%clk 0:02:58]}  Nbd7 {[%clk 0:02:34]} 8. Bd3 {[%clk 0:02:55]}  c5 {[%clk 0:02:24]} 9. O-O {[%clk 0:02:54]}  Qc7 {[%clk 0:02:16]} 10. dxc5 {[%clk 0:02:52]}  Nxc5 {[%clk 0:02:16]} 11. Bxf6 {[%clk 0:02:52]}  gxf6 {[%clk 0:02:16]} 12. e4 {[%clk 0:02:52]}  dxe4 {[%clk 0:02:14]} 13. Bxe4 {[%clk 0:02:43]}  f5 {[%clk 0:02:09]} 14. Bd3 {[%clk 0:02:25]}  b5 {[%clk 0:02:03]} 15. Bxb5+ {[%clk 0:02:25]}  Kf8 {[%clk 0:01:41]} 16. Bc4 {[%clk 0:01:58]}  Bb7 {[%clk 0:01:38]} 17. Kh1 {[%clk 0:01:19]}  Rg8 {[%clk 0:01:29]} 18. Qe2 {[%clk 0:01:09]}  Rc8 {[%clk 0:01:14]} 19. h3 {[%clk 0:01:03]}  Rg6 {[%clk 0:00:58]} 20. Rad1 {[%clk 0:01:01]}  Kg7 {[%clk 0:00:52]} 21. Nh4 {[%clk 0:00:55]}  Rg5 {[%clk 0:00:51]} 22. Nf3 {[%clk 0:00:40]}  Rg6 {[%clk 0:00:51]} 23. Rd4 {[%clk 0:00:40]}  Be7 {[%clk 0:00:44]} 24. Nh4 {[%clk 0:00:37]}  Bxh4 {[%clk 0:00:41]} 25. Rxh4 {[%clk 0:00:38]}  Bxg2+ {[%clk 0:00:37]} 0-1


[Site "https://www.chess.com"]